fUSD/lending_fUSD_20260320
["ID","MTS","AMOUNT","RATE_DAILY","PERIOD"]
[408652267,1774048250513,-746.0,0.00046301,60]
[408652268,1774048250523,-819.0,0.00046301,60]
[408652269,1774048250534,-922.0,0.00046301,60]
[408652270,1774048250545,-819.0,0.00046301,60]
[408652271,1774048250555,-474.0,0.00046301,60]
[408652272,1774048250565,-819.0,0.00046301,60]
[408652273,1774048250575,-819.0,0.00046301,60]
[408652274,1774048250585,-746.0,0.00046301,60]
[408652275,1774048250595,-922.0,0.00046301,60]
[408652276,1774048250605,-474.0,0.00046301,60]
[408652277,1774048250615,-819.0,0.00046301,60]
[408652278,1774048250627,-742.0,0.00046301,60]
[408652279,1774048250638,-765.42257394,0.00046301,60]
[408652280,1774048250650,-819.0,0.00046301,60]
[408652281,1774048250663,-922.0,0.00046301,60]
[408652282,1774048250674,-478.53861293,0.00046301,60]
[408652283,1774048250684,-819.0,0.00046301,60]
[408652284,1774048250696,-742.0,0.00046301,60]
[408652285,1774048250706,-944.808346,0.00046301,60]
[408652286,1774048250721,-819.0,0.00046301,60]
[408652287,1774048250736,-760.26976104,0.00046301,60]
[408652288,1774048250750,-833.76882246,0.00046301,60]
[408652289,1774048250762,-500.0,0.00046301,60]
[408652290,1774048250775,-500.0,0.00046301,60]
[408652291,1774048250787,-150.0,0.00046301,60]
[408652292,1774048250799,-500.0,0.00046301,60]
[408652293,1774048250812,-500.0,0.00046301,60]
[408652294,1774048250825,-150.0,0.00046301,60]
[408652295,1774048250838,-500.0,0.00046301,60]
[408652296,1774048250849,-500.0,0.00046301,60]
[408652297,1774048250860,-150.92321602,0.00046301,60]
[408652298,1774048250875,-500.0,0.00046301,60]
[408652299,1774048250886,-500.0,0.00046301,60]
[408652300,1774048250898,-500.0,0.00046301,60]
[408652301,1774048250911,-500.0,0.00046301,60]
[408652302,1774048250923,-500.0,0.00046301,60]
[408652303,1774048250933,-500.0,0.00046301,60]
[408652304,1774048250944,-500.0,0.00046301,60]
[408652305,1774048250955,-500.0,0.00046301,60]
[408652306,1774048250965,-500.0,0.00046301,60]
[408652307,1774048250975,-443.58663607,0.00046301,60]
[408652308,1774048250987,-450.0,0.00046301,60]
[408652309,1774048250999,-500.0,0.00046301,60]
[408652310,1774048251011,-500.0,0.00046301,60]
[408652311,1774048251022,-242.35965246,0.00046301,60]
[408652312,1774048251036,-500.0,0.00046301,60]
[408652313,1774048251049,-500.0,0.00046301,2]
[408652314,1774048251063,-500.0,0.00046301,60]
[408652315,1774048251075,-500.0,0.00046301,2]
[408652316,1774048251088,-500.0,0.00046301,60]
[408652317,1774048251101,-500.0,0.00046301,2]
[408652318,1774048251113,-500.0,0.00046301,60]
[408652319,1774048251127,-500.0,0.00046301,60]
[408652320,1774048251139,-500.0,0.00046301,2]
[408652321,1774048251153,-500.0,0.00046301,60]
[408652322,1774048251166,-215.1004949,0.00046301,60]
[408652323,1774048251179,-500.0,0.00046301,60]
[408652324,1774048251191,-500.0,0.00046301,60]
[408652325,1774048251203,-500.0,0.00046301,2]
[408652326,1774048251215,-500.0,0.00046301,60]
[408652327,1774048251226,-500.0,0.00046301,60]
[408652328,1774048251237,-500.0,0.00046301,60]
[408652329,1774048251250,-500.0,0.00046301,2]
[408652330,1774048251261,-500.0,0.00046301,60]
[408652331,1774048251274,-500.0,0.00046301,60]
[408652332,1774048251287,-500.0,0.00046301,2]
[408652333,1774048251298,-500.0,0.00046301,60]
[408652334,1774048251309,-196.3000351,0.00046301,60]
[408652335,1774048251321,-500.0,0.00046301,2]
[408652336,1774048251332,-500.0,0.00046301,60]
[408652337,1774048251344,-150.0,0.00046301,60]
[408652338,1774048251354,-500.0,0.00046301,2]
[408652339,1774048251364,-500.0,0.00046301,60]
[408652340,1774048251375,-150.0,0.00046301,60]
[408652341,1774048251386,-596.91714661,0.00046301,2]
[408652342,1774048251399,-500.0,0.00046301,60]
[408652343,1774048251412,-164.85950948,0.00046301,60]
[408652344,1774048251426,-500.0,0.00046301,60]
[408652345,1774048251438,-500.0,0.00046301,60]
[408652346,1774048251448,-500.0,0.00046301,60]
[408652347,1774048251458,-500.0,0.00046301,60]
[408652348,1774048251468,-500.0,0.00046301,60]
[408652349,1774048251480,-150.0,0.00046301,60]
[408652350,1774048251492,-447.42605228,0.00046301,60]
[408652351,1774048251504,-500.0,0.00046301,60]
[408652352,1774048251516,-500.0,0.00046301,60]
[408652353,1774048251528,-150.0,0.00046301,60]
[408652354,1774048251539,-338.75555333,0.00046301,60]
[408652355,1774048251550,-500.0,0.00046301,60]
[408652356,1774048251561,-500.0,0.00046301,60]
[408652357,1774048251570,-500.0,0.00046301,60]
[408652358,1774048251580,-216.08610835,0.00046301,60]
[408652359,1774048251591,-150.0,0.00046301,60]
[408652360,1774048251601,-500.0,0.00046301,60]
[408652361,1774048251612,-150.0,0.00046301,60]
[408652362,1774048251624,-500.0,0.00046301,60]
[408652363,1774048251636,-150.0,0.00046301,60]
[408652364,1774048251648,-617.15786941,0.00046301,60]
[408652365,1774048251660,-181.74407267,0.00046301,60]
[408652366,1774048251671,-150.0,0.00046301,60]
[408652367,1774048251683,-257.84668463,0.00046301,60]
[408652368,1774048251695,-150.0,0.00046301,60]
[408652369,1774048251706,-150.0,0.00046301,60]
[408652370,1774048251718,-195.06546453,0.00046301,60]
[408652371,1774048251728,-150.0,0.00046301,60]
[408652372,1774048251739,-178.6671581,0.00046301,60]
[408652373,1774048251750,-150.0,0.00046301,60]
[408652374,1774048251760,-208.87152917,0.00046301,60]
[408652375,1774048251770,-150.0,0.00046301,60]
[408652376,1774048251781,-150.0,0.00046301,60]
[408652377,1774048251791,-150.0,0.00046301,60]
[408652378,1774048251801,-150.0,0.00046301,60]
[408652379,1774048251812,-203.42478898,0.00046301,60]
[408652380,1774048251822,-215.99597875,0.00046301,60]
[408652381,1774048251834,-150.0,0.00046301,60]
[408652382,1774048251845,-150.0,0.00046301,60]
[408652383,1774048251858,-150.0,0.00046301,60]
[408652384,1774048251869,-150.0,0.00046301,60]
[408652385,1774048251884,-150.0,0.00046301,60]
[408652386,1774048251895,-157.95185233,0.00046301,60]
[408652387,1774048251909,-500.0,0.00046301,60]
[408652388,1774048251919,-500.0,0.00046301,60]
[408652389,1774048251929,-1543.0,0.00046301,60]
[408652390,1774048251940,-500.0,0.00046301,60]
[408652391,1774048251951,-1543.0,0.00046301,60]
[408652392,1774048251962,-500.0,0.00046301,60]
[408652393,1774048251972,-1543.0,0.00046301,60]
[408652394,1774048251983,-500.0,0.00046301,60]
[408652395,1774048251993,-1543.0,0.00046301,60]
[408652396,1774048252003,-500.0,0.00046301,60]
[408652397,1774048252014,-1543.0,0.00046301,60]
[408652398,1774048252025,-500.0,0.00046301,60]
[408652399,1774048252036,-1543.0,0.00046301,60]
[408652400,1774048252048,-1543.0,0.00046301,60]
[408652401,1774048252059,-500.0,0.00046301,60]
[408652402,1774048252069,-1543.0,0.00046301,60]
[408652403,1774048252080,-500.0,0.00046301,60]
[408652404,1774048252091,-1543.0,0.00046301,60]
[408652405,1774048252101,-500.0,0.00046301,60]
[408652406,1774048252111,-1543.0,0.00046301,60]
[408652407,1774048252122,-500.0,0.00046301,60]
[408652408,1774048252132,-1543.0,0.00046301,60]
[408652409,1774048252142,-500.0,0.00046301,60]
[408652410,1774048252153,-1543.0,0.00046301,60]
[408652411,1774048252163,-257.02458902,0.00046301,60]
[408652412,1774048252173,-1543.0,0.00046301,60]
[408652413,1774048252183,-1543.0,0.00046301,60]
[408652414,1774048252193,-1543.0,0.00046301,60]
[408652415,1774048252203,-1543.0,0.00046301,60]
[408652416,1774048252214,-1543.0,0.00046301,60]
[408652417,1774048252225,-1543.0,0.00046301,60]
[408652418,1774048252235,-1543.0,0.00046301,60]
[408652419,1774048252247,-1543.0,0.00046301,60]
[408652420,1774048252257,-1543.0,0.00046301,60]
[408652421,1774048252267,-1543.0,0.00046301,60]
[408652422,1774048252277,-1543.0,0.00046301,60]
[408652423,1774048252288,-1557.76094671,0.00046301,60]
[408652424,1774048252298,-151.5,0.00046321,2]
[408652425,1774048252309,-152.24,0.00046327,120]
[408652426,1774048252319,-151.5,0.00046377,2]
[408652427,1774048252329,-2000.0,0.000464,2]
[408652428,1774048252340,-152.24,0.00046427,120]
[408652429,1774048252350,-151.5,0.00046463,2]
[408652430,1774048252361,-152.24,0.00046527,120]
[408652431,1774048252372,-209.99665066,0.00046566,7]
[408652432,1774048252383,-272.41,0.00046575,2]
[408652433,1774048252394,-817.14,0.00046575,2]
[408652434,1774048252403,-1000.0,0.00046575,120]
[408652435,1774048252414,-1000.0,0.00046575,120]
[408652436,1774048252425,-1062.03322853,0.00046575,120]
[408652437,1774048252436,-152.24,0.00046627,120]
[408652438,1774048252447,-1118.93406773,0.00046641,30]
[408652439,1774048252458,-34787.93,0.00046655,6]
[408652440,1774048252469,-2390.1,0.0004669,120]
[408652441,1774048252479,-1587.9,0.000467,7]
[408652442,1774048252490,-152.24,0.00046727,120]
[408652443,1774048252500,-1726.71535918,0.00046772,120]
[408652444,1774048252510,-482.53725024,0.00046784,120]
[408652445,1774048252522,-1026.1,0.00046818,120]
[408652446,1774048252535,-152.24,0.00046827,120]
[408652447,1774048252545,-152.24,0.00046927,120]
[408652448,1774048252556,-150.0,0.00046977,14]
[408652449,1774048252566,-217.0,0.0004698,30]
[408652450,1774048252576,-2390.1,0.00047003,120]
[408652451,1774048252586,-154.98813193,0.0004702,14]
[408652452,1774048252596,-152.31,0.00047027,120]
[408652453,1774048252606,-500.0,0.00047044,120]
[408652454,1774048252618,-500.0,0.00047044,120]
[408652455,1774048252629,-425.2699987,0.00047044,120]
[408652456,1774048252640,-916.0,0.00047045,60]
[408652457,1774048252652,-916.0,0.00047045,60]
[408652458,1774048252664,-916.0,0.00047045,60]
[408652459,1774048252676,-916.0,0.00047045,60]
[408652460,1774048252689,-916.0,0.00047045,60]
[408652461,1774048252699,-916.0,0.00047045,60]
[408652462,1774048252710,-615.42068742,0.00047045,60]
[408652463,1774048252723,-500.0,0.00047054,10]
[408652464,1774048252733,-500.0,0.00047054,10]
[408652465,1774048252940,-500.0,0.00047054,10]
[408652466,1774048252950,-500.0,0.00047054,10]
[408652467,1774048252960,-500.0,0.00047054,10]
[408652468,1774048252969,-500.0,0.00047054,10]
[408652469,1774048252978,-500.0,0.00047054,30]
[408652470,1774048252987,-500.0,0.00047054,30]
[408652471,1774048252996,-500.0,0.00047054,30]
[408652472,1774048253006,-500.0,0.00047054,30]
[408652473,1774048253014,-500.0,0.00047054,30]
[408652474,1774048253024,-500.0,0.00047054,30]
[408652475,1774048253033,-515.26277344,0.00047054,120]
[408652476,1774048253043,-500.0,0.00047054,90]
[408652477,1774048253052,-500.0,0.00047054,90]
[408652478,1774048253062,-500.0,0.00047054,90]
[408652479,1774048253072,-537.40768111,0.00047054,90]
[408652480,1774048253082,-151.0,0.00047063,120]
[408652481,1774048253091,-159.0,0.00047066,120]
[408652482,1774048253100,-390.08,0.00047066,30]
[408652483,1774048253109,-390.08,0.00047066,30]
[408652484,1774048253119,-390.08,0.00047066,30]
[408652485,1774048253128,-523.84,0.00047066,30]
[408652486,1774048253138,-390.08,0.00047066,30]
[408652487,1774048253148,-390.08,0.00047066,30]
[408652488,1774048253160,-390.08,0.00047066,30]
[408652489,1774048253170,-390.08,0.00047066,30]
[408652490,1774048253180,-390.08,0.00047066,30]
[408652491,1774048253189,-390.08,0.00047066,30]
[408652492,1774048253198,-390.08,0.00047066,30]
[408652493,1774048253208,-390.09,0.00047066,30]
[408652494,1774048253217,-390.08,0.00047066,30]
[408652495,1774048253227,-1044.5279021,0.0004707,28]
[408652496,1774048253236,-235.97031687,0.0004707,28]
[408652497,1774048253246,-707.91095063,0.0004707,28]
[408652498,1774048253256,-280.3921874,0.00047074,7]
[408652499,1774048253265,-151.0,0.00047076,120]
[408652500,1774048253275,-151.0,0.00047076,120]
[408652501,1774048253285,-151.0,0.00047076,120]
[408652502,1774048253294,-528.46,0.00047078,120]
[408652503,1774048253303,-528.46,0.00047078,120]
[408652504,1774048253312,-528.46,0.00047078,120]
[408652505,1774048253322,-581.91,0.00047078,120]
[408652506,1774048253331,-581.91,0.00047078,120]
[408652507,1774048253342,-581.91,0.00047078,120]
[408652508,1774048253352,-16802.2,0.00047079,30]
[408652509,1774048253361,-390.08,0.00047079,30]
[408652510,1774048253371,-390.08,0.00047079,30]
[408652511,1774048253381,-390.08,0.00047079,30]
[408652512,1774048253390,-390.08,0.00047079,30]
[408652513,1774048253399,-390.08,0.00047079,30]
[408652514,1774048253409,-390.08,0.00047079,30]
[408652515,1774048253420,-390.08,0.00047079,30]
[408652516,1774048253430,-390.08,0.00047079,30]
[408652517,1774048253440,-390.08,0.00047079,30]
[408652518,1774048253451,-390.08,0.00047079,30]
[408652519,1774048253460,-390.08,0.00047079,30]
[408652520,1774048253470,-390.08,0.00047079,30]
[408652521,1774048253479,-390.08,0.00047079,30]
[408652522,1774048253488,-390.08,0.00047079,30]
[408652523,1774048253497,-390.08,0.00047079,30]
[408652524,1774048253507,-390.08,0.00047079,30]
[408652525,1774048253517,-390.08,0.00047079,30]
[408652526,1774048253526,-390.08,0.00047079,30]
[408652527,1774048253537,-389.81,0.00047079,30]
[408652528,1774048253546,-390.08,0.00047079,30]
[408652529,1774048253555,-271.49,0.00047079,30]
[408652530,1774048253565,-182.7,0.00047079,30]
[408652531,1774048253576,-565.44,0.00047079,30]
[408652532,1774048253586,-635.33,0.00047079,30]
[408652533,1774048253595,-390.08,0.00047079,30]
[408652534,1774048253604,-475.97,0.00047079,30]
[408652535,1774048253613,-151.0,0.00047079,30]
[408652536,1774048253623,-567.59,0.00047079,30]
[408652537,1774048253632,-182.7,0.00047079,30]
[408652538,1774048253641,-565.44,0.00047079,30]
[408652539,1774048253650,-475.97,0.00047079,30]
[408652540,1774048253660,-567.59,0.00047079,30]
[408652541,1774048253669,-274.12,0.00047079,30]
[408652542,1774048253678,-390.08,0.00047079,30]
[408652543,1774048253687,-182.7,0.00047079,30]
[408652544,1774048253696,-565.44,0.00047079,30]
[408652545,1774048253705,-475.97,0.00047079,30]
[408652546,1774048253714,-165.69,0.00047079,30]
[408652547,1774048253723,-567.59,0.00047079,30]
[408652548,1774048253732,-182.7,0.00047079,30]
[408652549,1774048253741,-565.44,0.00047079,30]
[408652550,1774048253750,-475.97,0.00047079,30]
[408652551,1774048253760,-567.59,0.00047079,30]
[408652552,1774048253769,-182.7,0.00047079,30]
[408652553,1774048253778,-475.97,0.00047079,30]
[408652554,1774048253788,-565.44,0.00047079,30]
[408652555,1774048253797,-182.7,0.00047079,30]
[408652556,1774048253806,-565.44,0.00047079,30]
[408652557,1774048253815,-475.97,0.00047079,30]
[408652558,1774048253825,-182.7,0.00047079,30]
[408652559,1774048253834,-565.44,0.00047079,30]
[408652560,1774048253843,-475.97,0.00047079,30]
[408652561,1774048253852,-182.7,0.00047079,30]
[408652562,1774048253862,-565.44,0.00047079,30]
[408652563,1774048253872,-475.97,0.00047079,30]
[408652564,1774048253884,-182.7,0.00047079,30]
[408652565,1774048253894,-635.33,0.00047079,30]
[408652566,1774048253904,-567.59,0.00047079,30]
[408652567,1774048253914,-220.74,0.00047079,30]
[408652568,1774048253924,-475.97,0.00047079,30]
[408652569,1774048253933,-182.7,0.00047079,30]
[408652570,1774048253943,-635.33,0.00047079,30]
[408652571,1774048253952,-475.97,0.00047079,30]
[408652572,1774048253962,-635.33,0.00047079,30]
[408652573,1774048253971,-635.33,0.00047079,30]
[408652574,1774048253981,-182.7,0.00047079,30]
[408652575,1774048253990,-192.3,0.00047079,30]
[408652576,1774048253999,-567.59,0.00047079,30]
[408652577,1774048254008,-567.59,0.00047079,30]
[408652578,1774048254017,-635.33,0.00047079,30]
[408652579,1774048254026,-475.97,0.00047079,30]
[408652580,1774048254035,-567.59,0.00047079,30]
[408652581,1774048254045,-635.33,0.00047079,30]
[408652582,1774048254054,-475.97,0.00047079,30]
[408652583,1774048254064,-567.59,0.00047079,30]
[408652584,1774048254074,-635.33,0.00047079,30]
[408652585,1774048254083,-504.7,0.00047079,30]
[408652586,1774048254093,-567.59,0.00047079,30]
[408652587,1774048254102,-635.33,0.00047079,30]
[408652588,1774048254111,-635.33,0.00047079,30]
[408652589,1774048254120,-567.59,0.00047079,30]
[408652590,1774048254129,-567.59,0.00047079,30]
[408652591,1774048254138,-443.57,0.00047079,30]
[408652592,1774048254147,-567.59,0.00047079,30]
[408652593,1774048254156,-175.45,0.00047079,30]
[408652594,1774048254165,-151.0,0.00047079,30]
[408652595,1774048254175,-151.0,0.00047079,30]
[408652596,1774048254184,-151.0,0.00047079,30]
[408652597,1774048254193,-475.97,0.00047079,30]
[408652598,1774048254202,-151.0,0.00047079,30]
[408652599,1774048254211,-151.0,0.00047079,30]
[408652600,1774048254221,-635.33,0.00047079,30]
[408652601,1774048254230,-567.59,0.00047079,30]
[408652602,1774048254239,-1707.52,0.00047079,30]
[408652603,1774048254249,-565.44,0.00047079,30]
[408652604,1774048254258,-182.7,0.00047079,30]
[408652605,1774048254267,-162.78,0.00047079,30]
[408652606,1774048254276,-151.0,0.00047079,30]
[408652607,1774048254286,-390.08,0.00047079,30]
[408652608,1774048254295,-151.0,0.00047079,30]
[408652609,1774048254305,-152.68,0.00047079,30]
[408652610,1774048254315,-151.0,0.00047079,30]
[408652611,1774048254324,-475.97,0.00047079,30]
[408652612,1774048254333,-634.66,0.00047079,30]
[408652613,1774048254343,-567.59,0.00047079,30]
[408652614,1774048254352,-151.0,0.00047079,30]
[408652615,1774048254361,-164.2,0.00047079,30]
[408652616,1774048254370,-565.44,0.00047079,30]
[408652617,1774048254379,-182.7,0.00047079,30]
[408652618,1774048254388,-151.0,0.00047079,30]
[408652619,1774048254397,-390.08,0.00047079,30]
[408652620,1774048254408,-151.0,0.00047079,30]
[408652621,1774048254417,-475.97,0.00047079,30]
[408652622,1774048254426,-567.59,0.00047079,30]
[408652623,1774048254435,-151.0,0.00047079,30]
[408652624,1774048254444,-161.53,0.00047079,30]
[408652625,1774048254453,-565.44,0.00047079,30]
[408652626,1774048254463,-390.08,0.00047079,30]
[408652627,1774048254473,-291.96,0.00047079,30]
[408652628,1774048254483,-301.55,0.00047079,30]
[408652629,1774048254493,-665.97,0.00047079,30]
[408652630,1774048254502,-170.47,0.00047079,30]
[408652631,1774048254511,-565.44,0.00047079,30]
[408652632,1774048254521,-475.97,0.00047079,30]
[408652633,1774048254531,-390.08,0.00047079,30]
[408652634,1774048254540,-592.25,0.00047079,30]
[408652635,1774048254549,-490.77,0.00047079,30]
[408652636,1774048254559,-390.08,0.00047079,30]
[408652637,1774048254569,-390.08,0.00047079,30]
[408652638,1774048254578,-390.08,0.00047079,30]
[408652639,1774048254587,-390.08,0.00047079,30]
[408652640,1774048254597,-390.08,0.00047079,30]
[408652641,1774048254606,-390.1,0.00047079,30]
[408652642,1774048254615,-188.93,0.00047079,30]
[408652643,1774048254624,-475.05,0.00047079,30]
[408652644,1774048254633,-564.28,0.00047079,30]
[408652645,1774048254642,-300.0,0.00047079,30]
[408652646,1774048254650,-671.33,0.00047079,30]
[408652647,1774048254660,-390.08,0.00047079,30]
[408652648,1774048254670,-225.44,0.00047079,30]
[408652649,1774048254679,-256810.65478902,0.00047084,10]
[408652650,1774048254816,-423.21074157,0.00047084,10]
[408652651,1774048254827,-5531.30993896,0.00047084,10]
[408652652,1774048254838,-22608.33710551,0.00047084,10]
[408652653,1774048254857,-500.0,0.00031232,2]
[408652654,1774048254867,-248.87789217,0.00047084,10]
[408652655,1774048255078,-203.63628131,0.000163,2]
[408652656,1774048255088,-167.8890567,0.000163,2]
[408652657,1774048255099,-137.56536526,0.000163,2]
[408652658,1774048255108,-18862.45912274,0.00019381,2]
[408652659,1774048255119,-824.0,0.00019381,2]
[408652660,1774048255135,-9231.45455704,0.00019381,2]
[408652661,1774048255144,-281.0,0.000232,10]
[408652662,1774048255154,-8426.40125296,0.00027397,10]
[408652663,1774048255165,-575.10394117,0.00027397,10]
[408652664,1774048255177,-12891.99495895,0.00027397,10]
[408652665,1774048255190,-3097.65984692,0.00027397,10]
[408652666,1774048255200,-500.0,0.00031506,2]
[408652667,1774048255209,-500.0,0.0003178,2]
[408652668,1774048255218,-500.0,0.00032054,2]
[408652669,1774048255228,-500.0,0.00032328,2]
[408652670,1774048255238,-500.0,0.00032602,2]
[408652671,1774048255247,-500.0,0.00032876,2]
[408652672,1774048255257,-500.0,0.0003315,2]
[408652673,1774048255266,-500.0,0.00033424,2]
[408652674,1774048255276,-500.0,0.00033698,2]
[408652675,1774048255285,-76.29130071,0.00033972,2]
[408652676,1774048255297,-423.70869929,0.00033972,2]
[408652677,1774048255306,-500.0,0.00034246,2]
[408652678,1774048255316,-146.03407926,0.0003452,2]
[408652708,1774049431959,-505.0,0.000133,2]
[408652709,1774049431969,-502.53385925,0.00013642,3]
[408652710,1774049431978,-19.58292687,0.00013737,2]
[408652711,1774049431990,-447.67906776,0.00013737,2]
[408652712,1774049432017,-32.73800537,0.00013737,2]
[408652713,1774049432026,-354.86543193,0.00013737,2]
[408652714,1774049432039,-145.13456807,0.00013737,2]
[408652715,1774049432049,-500.0,0.00013737,2]
[408652716,1774049432060,-200.0,0.00013868,2]
[408652717,1774049432072,-207.09961436,0.00013868,2]
[408652718,1774049432087,-839.85038564,0.00013868,2]
[408652719,1774049432098,-549.23695457,0.00013902,2]
[408652720,1774049432111,-1480.56975811,0.00013902,2]
[408652721,1774049432124,-151.0,0.00013994,2]
[408652722,1774049432136,-500.0,0.00014001,2]
[408652724,1774049432146,-173.86507547,0.00014001,2]
[408652726,1774049432157,-326.13492453,0.00014001,2]
[408652727,1774049432167,-269.38004335,0.00014001,2]
[408652728,1774049432188,-230.61995665,0.00014001,2]
[408652729,1774049432199,-500.0,0.00014001,2]
[408652730,1774049432208,-500.0,0.00014001,2]
[408652731,1774049432218,-500.0,0.00014001,2]
[408652732,1774049432232,-58.80099492,0.00014001,2]
[408652735,1774049432244,-349.87235382,0.00014001,2]
[408652736,1774049432254,-442.74981098,0.00014001,2]
[408652737,1774049432267,-57.25018902,0.00014001,2]
[408652738,1774049432277,-500.0,0.00014001,2]
[408652739,1774049432287,-162.3790124,0.00014001,2]
[408652740,1774049432301,-337.6209876,0.00014001,2]
[408652741,1774049432311,-348.37358644,0.00014001,2]
[408652742,1774049432323,-116.5450519,0.00014001,2]
[408652743,1774049432332,-500.0,0.00014001,2]
[408652744,1774049432342,-278.8649481,0.00014001,2]
[408652745,1774049432353,-221.1350519,0.00014001,2]
[408652746,1774049432363,-500.0,0.00014001,2]
[408652747,1774049432373,-500.0,0.00014001,2]
[408652748,1774049432382,-483.99760697,0.00014001,2]
[408652749,1774049432395,-500.0,0.00014001,2]
[408652750,1774049432405,-174.13478289,0.00014001,2]
[408652751,1774049432418,-114.02474588,0.00014001,2]
[408652752,1774049432429,-330.70665686,0.00014001,2]
[408652756,1774049438217,-169.29334314,0.00014001,2]
[408652757,1774049438230,-500.0,0.00014001,2]
[408652758,1774049438240,-500.0,0.00014001,2]
[408652759,1774049438249,-500.0,0.00014001,2]
[408652760,1774049438259,-500.0,0.00014001,2]
[408652761,1774049438270,-500.0,0.00014001,2]
[408652762,1774049438279,-500.0,0.00014001,2]
[408652763,1774049438290,-500.0,0.00014001,2]
[408652764,1774049438301,-500.0,0.00014001,2]
[408652765,1774049438313,-500.0,0.00014001,2]
[408652766,1774049438323,-500.0,0.00014001,2]
[408652767,1774049438333,-500.0,0.00014001,2]
[408652768,1774049438342,-500.0,0.00014001,2]
[408652769,1774049438353,-500.0,0.00014001,2]
[408652770,1774049438362,-500.0,0.00014001,2]
[408652771,1774049438371,-500.0,0.00014001,2]
[408652772,1774049438381,-500.0,0.00014001,2]
[408652773,1774049438390,-500.0,0.00014001,2]
[408652774,1774049438400,-500.0,0.00014001,2]
[408652775,1774049438409,-196.72492189,0.00014001,2]
[408652776,1774049438418,-500.0,0.00014001,2]
[408652777,1774049438428,-500.0,0.00014001,2]
[408652778,1774049438437,-500.0,0.00014001,2]
[408652779,1774049438446,-500.0,0.00014001,2]
[408652780,1774049438456,-500.0,0.00014001,2]
[408652781,1774049438465,-500.0,0.00014001,2]
[408652782,1774049438475,-309.11200623,0.00014001,2]
[408652819,1774049440303,-190.88799377,0.00014001,2]
[408652820,1774049440313,-500.0,0.00014001,2]
[408652821,1774049440322,-500.0,0.00014001,2]
[408652822,1774049440331,-500.0,0.00014001,2]
[408652823,1774049440340,-500.0,0.00014001,2]
[408652824,1774049440350,-500.0,0.00014001,2]
[408652825,1774049440359,-500.0,0.00014001,2]
[408652826,1774049440369,-500.0,0.00014001,2]
[408652827,1774049440378,-500.0,0.00014001,2]
[408652828,1774049440387,-500.0,0.00014001,2]
[408652829,1774049440396,-500.0,0.00014001,2]
[408652830,1774049440406,-400.0,0.00014001,2]
[408652831,1774049440415,-500.0,0.00014001,2]
[408652832,1774049440425,-500.0,0.00014001,2]
[408652833,1774049440434,-500.0,0.00014001,2]
[408652834,1774049440443,-500.0,0.00014001,2]
[408652835,1774049440453,-500.0,0.00014001,2]
[408652836,1774049440463,-500.0,0.00014001,2]
[408652837,1774049440472,-516.35814066,0.00014001,2]
[408652838,1774049440481,-500.0,0.00014001,2]